fUSD/lending_fUSD_20241127
["ID","MTS","AMOUNT","RATE_DAILY","PERIOD"]
[343575827,1732727454846,-500.0,9.999e-05,2]
[343575828,1732727454855,-500.0,9.999e-05,2]
[343575829,1732727454864,-500.0,9.999e-05,2]
[343575830,1732727454873,-500.0,9.999e-05,2]
[343575831,1732727454883,-500.0,9.999e-05,2]
[343575832,1732727454892,-215.57,9.999e-05,2]
[343575833,1732727454905,-500.0,9.999e-05,2]
[343575834,1732727454915,-500.0,9.999e-05,2]
[343575835,1732727454924,-403.44,9.999e-05,2]
[343575836,1732727454933,-500.0,9.999e-05,2]
[343575837,1732727454945,-500.0,9.999e-05,2]
[343575838,1732727454955,-500.0,9.999e-05,2]
[343575839,1732727454965,-500.0,9.999e-05,2]
[343575840,1732727454975,-500.0,9.999e-05,2]
[343575841,1732727454984,-385.95,9.999e-05,2]
[343575842,1732727454993,-500.0,9.999e-05,2]
[343575843,1732727455004,-500.0,9.999e-05,2]
[343575844,1732727455013,-500.0,9.999e-05,2]
[343575845,1732727455022,-500.0,9.999e-05,2]
[343575846,1732727455032,-566.69,9.999e-05,2]
[343575847,1732727455041,-355.77468596,9.999e-05,2]
[343575848,1732727455051,-566.69,9.999e-05,2]
[343575849,1732727455061,-566.69,9.999e-05,2]
[343575850,1732727455070,-566.69,9.999e-05,2]
[343575851,1732727455080,-566.69,9.999e-05,2]
[343575852,1732727455089,-566.69,9.999e-05,2]
[343575853,1732727455099,-566.69,9.999e-05,2]
[343575854,1732727455109,-566.69,9.999e-05,2]
[343575855,1732727455119,-566.69,9.999e-05,2]
[343575856,1732727455128,-566.69,9.999e-05,2]
[343575857,1732727455138,-566.69,9.999e-05,2]
[343575858,1732727455147,-566.69,9.999e-05,2]
[343575859,1732727455158,-566.69,9.999e-05,2]
[343575860,1732727455167,-500.0,9.999e-05,2]
[343575861,1732727455177,-566.69,9.999e-05,2]
[343575862,1732727455188,-500.0,9.999e-05,2]
[343575863,1732727455198,-500.0,9.999e-05,2]
[343575864,1732727455208,-566.69,9.999e-05,2]
[343575865,1732727455219,-500.0,9.999e-05,2]
[343575866,1732727455229,-566.69,9.999e-05,2]
[343575867,1732727455239,-500.0,9.999e-05,2]
[343575868,1732727455249,-566.69,9.999e-05,2]
[343575869,1732727455258,-364.48,9.999e-05,2]
[343575870,1732727455268,-566.85,9.999e-05,2]
[343575871,1732727455278,-500.0,9.999e-05,2]
[343575872,1732727455288,-500.0,9.999e-05,2]
[343575873,1732727455297,-500.0,9.999e-05,2]
[343575874,1732727455308,-500.0,9.999e-05,2]
[343575875,1732727455317,-500.0,9.999e-05,2]
[343575876,1732727455327,-578.91,9.999e-05,2]
[343575877,1732727455336,-547.56317971,9.999e-05,2]
[343575878,1732727455346,-500.0,9.999e-05,2]
[343575879,1732727455355,-492.01,9.999e-05,2]
[343575880,1732727455364,-500.0,9.999e-05,2]
[343575881,1732727455374,-500.0,9.999e-05,2]
[343575882,1732727455383,-543.46621554,9.999e-05,2]
[343575883,1732727455392,-500.0,9.999e-05,2]
[343575884,1732727455401,-500.0,9.999e-05,2]
[343575885,1732727455413,-545.54,9.999e-05,2]
[343575886,1732727455422,-311.96,9.999e-05,2]
[343575887,1732727455434,-751.09,9.999e-05,2]
[343575888,1732727455443,-751.09,9.999e-05,2]
[343575889,1732727455453,-500.0,9.999e-05,2]
[343575890,1732727455468,-751.09,9.999e-05,2]
[343575891,1732727455478,-500.0,9.999e-05,2]
[343575892,1732727455490,-751.09,9.999e-05,2]
[343575893,1732727455498,-500.0,9.999e-05,2]
[343575894,1732727455509,-751.09,9.999e-05,2]
[343575895,1732727455520,-500.0,9.999e-05,2]
[343575896,1732727455530,-500.0,9.999e-05,2]
[343575897,1732727455539,-751.09,9.999e-05,2]
[343575898,1732727455548,-500.0,9.999e-05,2]
[343575899,1732727455556,-500.0,9.999e-05,2]
[343575900,1732727455566,-751.09,9.999e-05,2]
[343575901,1732727455575,-500.0,9.999e-05,2]
[343575902,1732727455584,-500.0,9.999e-05,2]
[343575903,1732727455593,-751.09,9.999e-05,2]
[343575904,1732727455603,-500.0,9.999e-05,2]
[343575905,1732727455612,-500.0,9.999e-05,2]
[343575906,1732727455621,-500.0,9.999e-05,2]
[343575907,1732727455630,-500.0,9.999e-05,2]
[343575908,1732727455640,-500.0,9.999e-05,2]
[343575909,1732727455648,-751.09,9.999e-05,2]
[343575910,1732727455659,-500.0,9.999e-05,2]
[343575911,1732727455668,-751.09,9.999e-05,2]
[343575912,1732727455678,-500.0,9.999e-05,2]
[343575913,1732727455687,-751.09,9.999e-05,2]
[343575914,1732727455696,-500.0,9.999e-05,2]
[343575915,1732727455706,-500.0,9.999e-05,2]
[343575916,1732727455716,-751.09,9.999e-05,2]
[343575917,1732727455725,-500.0,9.999e-05,2]
[343575918,1732727455734,-567.26,9.999e-05,2]
[343575919,1732727455744,-751.09,9.999e-05,2]
[343575920,1732727455755,-500.0,9.999e-05,2]
[343575921,1732727455765,-751.09,9.999e-05,2]
[343575922,1732727455775,-500.0,9.999e-05,2]
[343575923,1732727455785,-313.21,9.999e-05,2]
[343575924,1732727455795,-751.09,9.999e-05,2]
[343575925,1732727455804,-751.09,9.999e-05,2]
[343575926,1732727455814,-751.09,9.999e-05,2]
[343575927,1732727455823,-751.26,9.999e-05,2]
[343575928,1732727455833,-500.0,9.999e-05,2]
[343575929,1732727455842,-500.0,9.999e-05,2]
[343575930,1732727455852,-500.0,9.999e-05,2]
[343575931,1732727455861,-500.0,9.999e-05,2]
[343575932,1732727455871,-500.0,9.999e-05,2]
[343575933,1732727455880,-520.49017916,9.999e-05,2]
[343575934,1732727455890,-500.0,9.999e-05,2]
[343575935,1732727455904,-306.24,9.999e-05,2]
[343575936,1732727455915,-100000.0,0.0001,2]
[343575937,1732727455924,-100000.0,0.0001,2]
[343575938,1732727455933,-100000.0,0.0001,2]
[343575939,1732727455943,-100000.0,0.0001,2]
[343575940,1732727455952,-100000.0,0.0001,2]
[343575941,1732727455961,-747512.94697415,0.0001,2]
[343575942,1732727455971,-11260.49835108,0.0001,2]
[343575943,1732727455982,-6378.35350622,0.0001,2]
[343575944,1732727455991,-6378.35350614,0.0001,2]
[343575945,1732727456000,-6378.35350614,0.0001,2]
[343575946,1732727456010,-6378.35350614,0.0001,2]
[343575947,1732727456021,-6378.35350614,0.0001,2]
[343575948,1732727456033,-6378.35350614,0.0001,2]
[343575949,1732727456045,-6378.35350614,0.0001,2]
[343575950,1732727456057,-6378.35350614,0.0001,2]
[343575951,1732727456069,-6378.35350614,0.0001,2]
[343575952,1732727456082,-52464.1466924,0.0001,2]
[343575953,1732727456093,-3505398.34812189,0.0001,2]
[343575954,1732727456118,-477.74,0.0001,2]
[343575955,1732727456222,-492.76829825,9.641e-05,2]
[343575956,1732727456238,-603.23170175,9.641e-05,2]
[343575957,1732727456251,-2500.0,9.763e-05,2]
[343575958,1732727456263,-6478.76829825,0.0001,2]
[343575959,1732727456439,-500.0,9.863e-05,2]
[343575960,1732727456450,-1.66436501,9.863e-05,2]
[343575961,1732727456463,-498.33563499,9.863e-05,2]
[343575962,1732727456475,-427.98,9.863e-05,2]
[343575963,1732727456486,-500.0,9.863e-05,2]
[343575964,1732727456497,-9075.13636495,0.0001,2]
[343575965,1732727456513,-1425.53574768,0.0001,2]
[343575966,1732727456525,-3817.00033784,0.0001,2]
[343575967,1732727456540,-413.31726498,0.0001,2]
[343575968,1732727456570,-4542.81703334,0.0001,2]
[343575969,1732727456583,-3111.9241216,0.0001,2]
[343575970,1732727456597,-17645.15512718,0.0001,2]
[343575971,1732727456609,-23343.00152999,0.0001,2]
[343575972,1732727456623,-10547.2759774,0.0001,2]
[343575973,1732727456760,-500.0,9.863e-05,2]
[343575974,1732727456770,-500.0,9.863e-05,2]
[343575975,1732727456780,-1663130.18286971,0.0001,2]
[343575976,1732727456800,-958.4161724,0.0001,2]
[343575977,1732727456813,-337.29515557,0.0001,2]
[343575978,1732727456827,-5773.08,0.0001,2]
[343575979,1732727456840,-25316.09625,0.0001,2]
[343575980,1732727456852,-378.43860269,0.0001,2]
[343575981,1732727456866,-9602.667,0.0001,2]
[343575982,1732727456877,-378.54752543,0.0001,2]
[343575989,1732728104189,-604.9715,7.903e-05,2]
[343575990,1732728104215,-2700.10862155,8.219e-05,2]
[343575991,1732728104242,-1794.91987845,8.219e-05,2]
[343575992,1732728112510,-12675.06450685,0.00027,120]
[343575993,1732728122310,-469.44,0.00016658,30]
[343575994,1732728122355,-469.44,0.00019242,30]
[343575995,1732728122386,-2000.0,0.00019478,31]
[343575996,1732728122428,-2000.0,0.00021234,31]
[343575997,1732728122461,-469.44,0.00021826,30]
[343575998,1732728122500,-500.0,0.0002392,30]
[343575999,1732728122530,-500.0,0.0002392,30]
[343576000,1732728122559,-500.0,0.0002392,30]
[343576001,1732728122591,-500.0,0.0002392,30]
[343576002,1732728122620,-500.0,0.0002392,30]
[343576003,1732728122648,-500.0,0.0002392,30]
[343576004,1732728122676,-500.0,0.0002392,30]
[343576005,1732728122704,-500.0,0.0002392,30]
[343576006,1732728122732,-500.0,0.0002392,30]
[343576007,1732728122759,-513.48147955,0.0002392,30]
[343576008,1732728122791,-469.44,0.0002441,30]
[343576009,1732728122827,-1132.0,0.00025,60]
[343576010,1732728122856,-2000.0,0.00025234,31]
[343576011,1732728122889,-469.44,0.00026994,30]
[343576012,1732728122924,-2000.0,0.00027397,30]
[343576013,1732728122952,-2011.74203376,0.00027397,30]
[343576014,1732728122993,-500.0,0.00028,60]
[343576015,1732728123024,-500.0,0.00028,60]
[343576016,1732728123056,-500.0,0.00028,60]
[343576017,1732728123090,-500.0,0.00028,60]
[343576018,1732728123123,-500.0,0.00028,60]
[343576019,1732728123154,-500.0,0.00028,60]
[343576020,1732728123187,-500.0,0.00028,60]
[343576021,1732728123220,-500.0,0.00028,60]
[343576022,1732728123253,-500.0,0.00028,60]
[343576023,1732728123283,-500.0,0.00028,60]
[343576024,1732728123320,-500.0,0.00028,60]
[343576025,1732728123357,-500.0,0.00028,60]
[343576026,1732728123389,-500.0,0.00028,60]
[343576027,1732728123420,-500.0,0.00028,60]
[343576028,1732728123460,-500.0,0.00028,60]
[343576029,1732728123493,-500.0,0.00028,60]
[343576030,1732728123526,-400.54,0.00028,60]
[343576031,1732728123560,-500.0,0.00028,60]
[343576032,1732728123593,-500.0,0.00028,60]
[343576033,1732728131745,-1000.0,0.00028,60]
[343576034,1732728131777,-172.42612618,0.00028,60]
[343576035,1732728131808,-350.36386888,0.00028,60]
[343576036,1732728131841,-4880.0,0.00028,60]
[343576037,1732728131874,-3707.0,0.00028,60]
[343576038,1732728131905,-3000.0,0.00028,60]
[343576039,1732728131941,-1333.0,0.00029041,120]
[343576040,1732728131977,-469.44,0.00029578,30]
[343576041,1732728132012,-4947.0,0.0003,30]
[343576042,1732728132044,-198.11807277,0.0003,33]
[343576043,1732728132080,-200.0,0.0003,120]
[343576044,1732728132115,-151.0,0.0003,120]
[343576045,1732728132679,-151.0,0.0003,120]
[343576046,1732728138426,-500.0,0.00030136,120]
[343576047,1732728138455,-500.0,0.00030136,120]
[343576048,1732728138484,-633.69799222,0.00030136,120]
[343576049,1732728138515,-2300.0,0.00030411,30]
[343576050,1732728138545,-402.0,0.00030613,30]
[343576051,1732728138574,-2300.0,0.00030685,30]
[343576052,1732728138609,-151.0,0.00030877,120]
[343576053,1732728138637,-2300.0,0.00030959,30]
[343576054,1732728138670,-2300.0,0.00031233,30]
[343576055,1732728138700,-397.739,0.0003132,120]
[343576056,1732728138729,-151.0,0.00031452,120]
[343576057,1732728138759,-2300.0,0.00031507,30]
[343576058,1732728138789,-205.0,0.0003174,30]
[343576059,1732728138820,-151.0,0.00031753,120]
[343576060,1732728138849,-2300.0,0.00031781,30]
[343576061,1732728138880,-450.0,0.00032,120]
[343576062,1732728138910,-2300.0,0.00032055,30]
[343576063,1732728138942,-469.44,0.00032162,30]
[343576064,1732728138971,-2300.0,0.00032329,30]
[343576065,1732728139000,-397.726,0.0003254,120]
[343576066,1732728139029,-2300.0,0.00032603,30]
[343576067,1732728139060,-151.0,0.0003263,120]
[343576068,1732728139093,-2000.0,0.00032876,120]
[343576069,1732728139126,-2000.0,0.00032876,120]
[343576070,1732728139154,-2000.0,0.00032876,120]
[343576071,1732728139186,-2000.0,0.00032876,120]
[343576072,1732728139216,-1848.45851807,0.00032876,120]
[343576073,1732728139247,-2300.0,0.00032877,30]
[343576074,1732728139277,-152.0,0.00032877,30]
[343576075,1732728139307,-151.0,0.00032904,120]
[343576076,1732728139336,-949.37631753,0.00033,30]
[343576077,1732728139368,-500.0,0.00033,30]
[343576078,1732728139397,-500.0,0.00033,30]
[343576079,1732728139424,-500.0,0.00033,30]
[343576080,1732728139453,-500.0,0.00033,30]
[343576081,1732728139664,-500.0,0.00033,30]
[343576082,1732728139695,-500.0,0.00033,30]
[343576083,1732728139725,-500.0,0.00033,30]
[343576084,1732728139755,-500.0,0.00033,30]
[343576085,1732728139785,-500.0,0.00033,30]
[343576086,1732728139816,-500.0,0.00033,30]
[343576087,1732728139845,-500.0,0.00033,30]
[343576088,1732728139874,-500.0,0.00033,30]
[343576089,1732728139903,-500.0,0.00033,30]
[343576090,1732728139933,-500.0,0.00033,30]
[343576091,1732728139964,-500.0,0.00033,30]
[343576092,1732728139994,-500.0,0.00033,30]
[343576093,1732728140024,-500.0,0.00033,30]
[343576094,1732728140054,-500.0,0.00033,30]
[343576095,1732728140084,-500.0,0.00033,30]
[343576096,1732728140118,-500.0,0.00033,30]
[343576097,1732728140151,-599.35014216,0.00033,30]
[343576098,1732728140181,-500.0,0.00033,30]
[343576099,1732728140212,-775.56661355,0.00033,30]
[343576100,1732728140243,-738.4909606,0.00033,30]
[343576101,1732728140272,-500.0,0.00033,30]
[343576102,1732728140303,-500.0,0.00033,30]
[343576103,1732728140333,-500.0,0.00033,30]
[343576104,1732728140364,-500.0,0.00033,30]
[343576105,1732728140393,-774.34148184,0.00033,30]
[343576106,1732728140422,-812.73612638,0.00033,30]
[343576107,1732728140452,-500.0,0.00033,30]
[343576108,1732728140481,-882.88896315,0.00033,30]
[343576109,1732728140509,-500.0,0.00033,30]
[343576110,1732728140538,-500.0,0.00033,30]
[343576111,1732728140566,-500.0,0.00033,30]
[343576112,1732728140600,-500.0,0.00033,30]
[343576113,1732728140628,-500.0,0.00033,30]
[343576114,1732728140657,-500.0,0.00033,30]
[343576115,1732728140685,-500.0,0.00033,30]
[343576116,1732728140713,-500.0,0.00033,30]
[343576117,1732728140744,-500.0,0.00033,30]
[343576118,1732728140775,-500.0,0.00033,30]
[343576119,1732728140804,-500.0,0.00033,30]
[343576120,1732728140834,-500.0,0.00033,30]
[343576121,1732728140868,-562.62024052,0.00033,30]
[343576122,1732728140898,-500.0,0.00033,30]
[343576123,1732728140927,-500.0,0.00033,30]
[343576124,1732728140956,-608.64048055,0.00033,30]
[343576125,1732728140987,-1200.0,0.00033,30]
[343576126,1732728141017,-1200.0,0.00033,30]
[343576127,1732728141046,-1200.0,0.00033,30]
[343576128,1732728141077,-1200.0,0.00033,30]
[343576129,1732728141111,-1200.0,0.00033,30]
[343576130,1732728141146,-1200.0,0.00033,30]
[343576131,1732728141175,-1200.0,0.00033,30]
[343576132,1732728141204,-1200.0,0.00033,30]
[343576133,1732728141233,-1200.0,0.00033,30]
[343576134,1732728141261,-1200.0,0.00033,30]
[343576135,1732728141435,-1200.0,0.00033,30]
[343576136,1732728141464,-1200.0,0.00033,30]
[343576137,1732728141494,-1200.0,0.00033,30]
[343576138,1732728141525,-2172.1370932,0.00033,30]
[343576139,1732728141555,-596.25177049,0.00033,30]
[343576140,1732728141586,-500.0,0.00033,30]
[343576141,1732728141620,-505.3023819,0.00033,30]
[343576142,1732728141648,-500.0,0.00033,30]
[343576143,1732728141676,-500.0,0.00033,30]
[343576144,1732728141705,-500.0,0.00033,30]
[343576145,1732728141734,-500.0,0.00033,30]
[343576146,1732728141764,-500.0,0.00033,30]
[343576147,1732728141795,-500.0,0.00033,30]
[343576148,1732728141824,-500.0,0.00033,30]
[343576149,1732728141854,-500.0,0.00033,30]
[343576150,1732728141884,-500.0,0.00033,30]
[343576151,1732728141915,-500.0,0.00033,30]
[343576152,1732728141944,-500.0,0.00033,30]
[343576153,1732728141975,-500.0,0.00033,30]
[343576154,1732728142004,-500.0,0.00033,30]
[343576155,1732728142033,-500.0,0.00033,30]
[343576156,1732728142062,-500.0,0.00033,30]
[343576157,1732728142093,-500.0,0.00033,30]
[343576158,1732728142122,-500.0,0.00033,30]
[343576159,1732728142153,-500.0,0.00033,30]
[343576160,1732728142183,-500.0,0.00033,30]
[343576161,1732728142212,-500.0,0.00033,30]
[343576162,1732728142241,-500.0,0.00033,30]
[343576163,1732728142269,-500.0,0.00033,30]
[343576164,1732728142299,-500.0,0.00033,30]
[343576165,1732728142330,-500.0,0.00033,30]
[343576166,1732728142361,-500.0,0.00033,30]
[343576167,1732728142389,-500.0,0.00033,30]
[343576168,1732728142420,-500.0,0.00033,30]
[343576169,1732728142449,-500.0,0.00033,30]
[343576170,1732728142478,-500.0,0.00033,30]
[343576171,1732728142508,-506.03003514,0.00033,30]
[343576172,1732728142537,-500.0,0.00033,30]
[343576173,1732728142567,-500.0,0.00033,30]
[343576174,1732728142599,-500.0,0.00033,30]
[343576175,1732728142628,-500.0,0.00033,30]
[343576176,1732728142658,-500.0,0.00033,30]
[343576177,1732728142687,-500.0,0.00033,30]
[343576178,1732728142715,-500.0,0.00033,30]
[343576179,1732728142743,-500.0,0.00033,30]
[343576180,1732728142771,-500.0,0.00033,30]
[343576181,1732728142802,-500.0,0.00033,30]
[343576182,1732728142830,-500.0,0.00033,30]
[343576183,1732728142861,-500.0,0.00033,30]
[343576184,1732728142889,-1200.0,0.00033,30]
[343576185,1732728142918,-500.0,0.00033,30]
[343576186,1732728142947,-500.0,0.00033,30]
[343576187,1732728142976,-1200.0,0.00033,30]
[343576188,1732728143004,-500.0,0.00033,30]
[343576189,1732728143188,-500.0,0.00033,30]
[343576190,1732728143219,-1200.0,0.00033,30]
[343576191,1732728143247,-500.0,0.00033,30]
[343576192,1732728143276,-500.0,0.00033,30]
[343576193,1732728143304,-500.0,0.00033,30]
[343576194,1732728143333,-1200.0,0.00033,30]
[343576195,1732728143363,-500.0,0.00033,30]
[343576196,1732728143391,-500.0,0.00033,30]
[343576197,1732728143420,-1200.0,0.00033,30]
[343576198,1732728143451,-500.0,0.00033,30]
[343576199,1732728143482,-500.0,0.00033,30]
[343576200,1732728143512,-1200.0,0.00033,30]
[343576201,1732728143543,-1200.0,0.00033,30]
[343576202,1732728143574,-500.0,0.00033,30]
[343576203,1732728143605,-1200.0,0.00033,30]
[343576204,1732728143634,-1200.0,0.00033,30]
[343576205,1732728143664,-1200.0,0.00033,30]
[343576206,1732728143694,-1200.0,0.00033,30]
[343576207,1732728143723,-1200.0,0.00033,30]
[343576208,1732728143752,-1200.0,0.00033,30]
[343576209,1732728143781,-1200.0,0.00033,30]
[343576210,1732728143810,-500.0,0.00033,30]
[343576211,1732728174823,-151.0,0.00033507,120]
[343576212,1732728174856,-397.755,0.0003375,120]
[343576213,1732728174889,-450.0,0.00034,120]
[343576214,1732728174921,-337576.96653184,0.00034,120]
[343576215,1732728174951,-241.14060295,0.00034,120]
[343576216,1732728175222,-184351.0,0.00034,120]
[343576217,1732728175258,-151.0,0.00034356,120]
[343576218,1732728175287,-151.0,0.00034384,120]
[343576219,1732728175319,-469.44,0.00034746,120]
[343576220,1732728175351,-397.702,0.0003497,120]
[343576221,1732728175387,-567.24344535,0.000352,120]
[343576222,1732728175419,-151.0,0.0003526,120]
[343576223,1732728175451,-151.0,0.00035808,120]
[343576224,1732728175483,-450.0,0.00036,120]
[343576225,1732728187076,-205.0,0.0003312,30]
[343576226,1732728187108,-152.0,0.00033242,31]
[343576227,1732728187143,-204.83,0.000335,31]
[343576228,1732728187179,-204.83,0.000335,31]
[343576229,1732728187213,-204.83,0.000335,31]
[343576230,1732728187247,-204.83,0.000335,31]
[343576231,1732728187281,-204.83,0.000335,31]
[343576232,1732728187601,-204.83,0.000335,31]
[343576233,1732728187638,-204.83,0.000335,31]
[343576234,1732728187670,-204.83,0.000335,31]
[343576235,1732728187705,-204.83,0.000335,31]
[343576236,1732728187739,-204.83,0.000335,31]
[343576237,1732728187771,-204.83,0.000335,31]
[343576238,1732728187803,-204.83,0.000335,31]
[343576239,1732728187833,-152.0,0.00033607,32]
[343576240,1732728187863,-152.0,0.00033972,33]
[343576241,1732728187897,-150.0,0.00034,30]
[343576242,1732728187930,-152.0,0.00034337,34]
[343576243,1732728187961,-205.0,0.0003451,30]
[343576244,1732728187994,-152.0,0.00034702,35]
[343576245,1732728188026,-1792.139,0.00034945,40]
[343576246,1732728188064,-2000.0,0.00035,30]
[343576247,1732728188098,-152.0,0.00035067,36]
[343576248,1732728188137,-204.83,0.000351,31]
[343576249,1732728188176,-204.83,0.000351,31]
[343576250,1732728188211,-204.83,0.000351,31]
[343576251,1732728188247,-204.83,0.000351,31]
[343576252,1732728188280,-204.83,0.000351,31]
[343576253,1732728188313,-204.83,0.000351,31]
[343576254,1732728188347,-204.83,0.000351,31]
[343576255,1732728188384,-204.83,0.000351,31]
[343576256,1732728188418,-204.83,0.000351,31]
[343576257,1732728188451,-204.83,0.000351,31]
[343576258,1732728188485,-204.83,0.000351,31]
[343576259,1732728188518,-204.83,0.000351,31]
[343576260,1732728188550,-204.83,0.000351,31]
[343576261,1732728188581,-204.83,0.000351,31]
[343576262,1732728188619,-204.83,0.000351,31]
[343576263,1732728188658,-204.83,0.000351,31]
[343576264,1732728188692,-204.83,0.000351,31]
[343576265,1732728188725,-204.83,0.000351,31]
[343576266,1732728188758,-204.83,0.000351,31]
[343576267,1732728188793,-204.83,0.000351,31]
[343576268,1732728188828,-204.83,0.000351,31]
[343576269,1732728188863,-204.83,0.000351,31]
[343576270,1732728188897,-204.83,0.000351,31]
[343576271,1732728188928,-204.83,0.000351,31]
[343576272,1732728188960,-152.0,0.00035432,37]
[343576273,1732728188992,-500.0,0.00035506,60]
[343576274,1732728189025,-1300.0,0.00035506,60]
[343576275,1732728189057,-1330.92,0.00035616,32]
[343576276,1732728189087,-165.93030426,0.00035616,30]
[343576277,1732728189118,-152.0,0.00035797,38]
[343576278,1732728189152,-205.0,0.0003589,30]
[343576279,1732728190814,120309.06862716,0.00032505,30]
[343576280,1732728200245,-1300.0,0.00036054,60]
[343576281,1732728200278,-151.0,0.00036137,120]
[343576282,1732728200309,-152.0,0.00036163,39]
[343576283,1732728200340,-397.779,0.0003618,120]
[343576284,1732728200373,-152.0,0.00036528,40]
[343576285,1732728200407,-1300.0,0.00036602,60]
[343576286,1732728200438,-500.0,0.00036602,60]
[343576287,1732728200469,-204.83,0.000367,31]
[343576288,1732728200501,-204.83,0.000367,31]
[343576289,1732728200532,-204.83,0.000367,31]
[343576290,1732728200567,-204.83,0.000367,31]
[343576291,1732728200598,-204.83,0.000367,31]
[343576292,1732728200629,-204.83,0.000367,31]
[343576293,1732728200665,-204.83,0.000367,31]
[343576294,1732728200699,-204.83,0.000367,31]
[343576295,1732728200731,-204.83,0.000367,31]
[343576296,1732728200762,-204.83,0.000367,31]
[343576297,1732728200794,-204.83,0.000367,31]
[343576298,1732728200826,-204.83,0.000367,31]
[343576299,1732728200857,-204.83,0.000367,31]
[343576300,1732728200892,-204.83,0.000367,31]
[343576301,1732728200923,-204.83,0.000367,31]
[343576302,1732728200954,-204.83,0.000367,31]
[343576303,1732728200987,-204.83,0.000367,31]
[343576304,1732728201019,-204.83,0.000367,31]
[343576305,1732728201249,-204.83,0.000367,31]
[343576306,1732728201283,-204.83,0.000367,31]
[343576307,1732728201314,-204.83,0.000367,31]
[343576308,1732728201347,-204.83,0.000367,31]
[343576309,1732728201380,-204.83,0.000367,31]
[343576310,1732728201418,-204.83,0.000367,31]
[343576311,1732728201450,-152.0,0.00036893,41]
[343576312,1732728201480,-1330.92,0.00036986,37]
[343576313,1732728201513,-463904.49000943,0.00037,90]
[343576314,1732728201543,-5000.0,0.00037,90]
[343576315,1732728201574,-160.0,0.00037,120]
[343576316,1732728201605,-2000.0,0.00037,30]
[343576317,1732728201636,-1158.349999,0.00037,120]
[343576318,1732728201667,-151.0,0.00037014,120]
[343576319,1732728201696,-1300.0,0.0003715,60]
[343576320,1732728201727,-152.0,0.00037258,42]
[343576321,1732728201758,-151.0,0.0003726,120]
[343576322,1732728201789,-205.0,0.0003727,30]
[343576323,1732728201819,-469.44,0.0003733,120]
[343576324,1732728201852,-397.747,0.0003739,120]
[343576325,1732728201887,-1100.0,0.00037698,60]
[343576326,1732728201916,-500.0,0.00037698,60]
[343576327,1732728201947,-227000.0,0.000378,120]
[343576328,1732728201978,-151.0,0.0003789,120]
[343576329,1732728202009,-10000.0,0.00038,120]
[343576330,1732728202040,-30000.0,0.00038,45]
[343576331,1732728202071,-2006.34,0.00038,120]
[343576332,1732728202101,-450.0,0.00038,120]